bitfinex-derivatives/quotes_SOLF0:USTF0_20240902
["timestamp","ask_amount","ask_price","bid_price","bid_amount"]
[1725266898638,0.05226189,129.99,129.97,20.71]
[1725266898832,3.8447,130.06,130.01,3.8458]
[1725266899048,3.8447,130.06,130.01,7.04]
[1725266899244,3.8447,130.06,130.02,20.71]
[1725266899448,3.8447,130.06,130.02,31.57719372]
[1725266899742,0.0500699,130.05,130.03,0.05860886]
[1725266899934,0.0500699,130.05,130.04,20.71]
[1725266900637,3.84872721,130.12,130.06,3.8445]
[1725266900837,1.3441,130.15,130.06,20.71]
[1725266901040,1.3441,130.15,130.08,24.5537]
[1725266901244,22.13,130.17,130.08,20.71]
[1725266901452,1.42,130.17,130.09,7.04]
[1725266901642,1.42,130.17,130.11,0.05424107]
[1725266901643,0.04939785,130.13,130.11,0.05424107]
[1725266902043,0.04939785,130.13,130.12,3.80104591]
[1725266902941,0.04939785,130.13,130.11,3.89724107]
[1725266903650,0.04939785,130.13,130.11,7.79488738]
[1725266903842,0.04939785,130.13,130.12,3.8427]
[1725266904152,0.04939785,130.13,130.12,29.6727]
[1725266904450,2.729,130.21,130.13,3.8424]
[1725266904655,3.8411,130.18,130.12,25.83]
[1725266904842,2.729,130.21,130.12,25.83]
[1725266904843,2.729,130.21,130.14,7.04]
[1725266905346,3.8413,130.18,130.16,0.0510436]
[1725266905547,0.05488233,130.19,130.16,0.0510436]
[1725266907246,3.841,130.18,130.16,0.0510436]
[1725266907643,0.05488233,130.19,130.16,0.0510436]
[1725266907946,3.841,130.18,130.16,0.0510436]
[1725266908545,3.8413,130.17,130.16,0.0510436]
[1725266908751,0.05488233,130.19,130.16,0.0510436]
[1725266909841,3.841,130.18,130.16,0.0510436]
[1725266910450,3.8413,130.17,130.16,0.0510436]
[1725266910646,0.05488233,130.19,130.16,0.0510436]
[1725266912346,0.05488233,130.19,130.16,3.8923436]
[1725266913843,0.05488233,130.19,130.17,29.6712]
[1725266914248,0.05488233,130.19,130.18,3.76103356]
[1725266915258,0.05488233,130.19,130.18,10.78103356]
[1725266915455,0.05488233,130.19,130.18,3.841]
[1725266915648,0.05488233,130.19,130.18,10.861]
[1725266915953,0.05488233,130.19,130.18,14.7426386]
[1725266919659,0.05488233,130.19,130.18,10.9016386]
[1725266921167,0.05488233,130.19,130.18,14.7426386]
[1725266922168,225.0,130.36,130.18,32.85]
[1725266922462,1.3393,130.32,130.24,25.83]
[1725266923079,3.89584207,130.29,130.27,0.05888245]
[1725266923279,0.05784207,130.29,130.27,0.05888245]
[1725266923470,3.90739371,130.29,130.27,0.05888245]
[1725266923781,0.05784207,130.29,130.27,0.05888245]
[1725266925087,3.838,130.28,130.27,0.05888245]
[1725266925286,25.88784207,130.29,130.2,25.83]
[1725266925478,25.83,130.29,130.2,25.83]
[1725266925680,29.74179909,130.29,130.21,3.8399]
[1725266926175,29.74179909,130.29,130.24,0.05341611]
[1725266926176,0.05833729,130.26,130.24,0.05341611]
[1725266926379,3.8389,130.25,130.24,0.05341611]
[1725266927378,0.05833729,130.26,130.19,7.02]
[1725266927585,29.74179909,130.29,130.19,10.8605]
[1725266928283,3.8392,130.24,130.23,0.05843938]
[1725266928477,3.8392,130.24,130.19,10.8605]
[1725266928478,0.0486055,130.25,130.18,33.46822309]
[1725266928682,29.74179909,130.29,130.19,7.02]
[1725266928884,29.74179909,130.29,130.18,40.48822309]
[1725266929277,3.8397,130.23,130.18,40.48822309]
[1725266929477,0.05252482,130.22,130.19,0.05209298]
[1725266929678,0.05252482,130.22,130.19,3.89259298]
[1725266929981,0.05252482,130.22,130.19,0.05209298]
[1725266930481,0.05252482,130.22,130.2,25.83]
[1725266930878,0.05252482,130.22,130.21,3.8401]
[1725266931675,3.8384,130.27,130.22,3.8397]
[1725266931886,3.8384,130.27,130.22,29.6697]
[1725266932086,3.8384,130.27,130.23,7.02]
[1725266932782,3.93427518,130.28,130.24,0.05308294]
[1725266932783,3.8965435,130.26,130.24,0.05308294]
[1725266936187,0.0578435,130.26,130.24,0.05308294]
[1725266936782,3.8964435,130.26,130.24,0.05308294]
[1725266937999,3.8389,130.25,130.24,0.05308294]
[1725266938485,0.0578435,130.26,130.19,7.02]
[1725266938486,3.8398,130.23,130.19,7.02]
[1725266938895,1.4095,130.27,130.2,20.63]
[1725266939091,3.839,130.25,130.2,20.63]
[1725266939483,0.05482811,130.24,130.22,20.63]
[1725266939992,0.05482811,130.24,130.22,24.4696]
[1725266940383,0.05482811,130.24,130.22,20.63]
[1725266941388,0.05482811,130.24,130.23,3.8395]
[1725266941581,2.8807,130.31,130.22,20.63]
[1725266941788,2.8807,130.31,130.26,20.63]
[1725266941987,3.8381,130.28,130.24,27.65]
[1725266942197,2.8807,130.31,130.24,27.65]
[1725266942491,3.88678951,130.29,130.26,20.68074362]
[1725266942690,0.04888951,130.29,130.26,20.68074362]
[1725266943892,0.04888951,130.29,130.27,20.63]
[1725266945386,2.9099,130.35,130.28,3.838]
[1725266945697,2.9099,130.35,130.3,20.63]
[1725266946101,3.8368,130.33,130.3,20.63]
[1725266946394,3.89278195,130.33,130.3,20.68177963]
[1725266946584,3.89278195,130.33,130.3,0.05177963]
[1725266946585,3.837,130.32,130.3,0.05177963]
[1725266947888,3.89258195,130.33,130.3,0.05177963]
[1725266948193,0.05598195,130.33,130.3,20.68177963]
[1725266948799,0.05598195,130.33,130.32,20.63]
[1725266950891,0.05598195,130.33,130.3,24.51907963]
[1725266952494,0.05598195,130.33,130.3,0.05177963]
[1725266952994,3.8371,130.32,130.3,0.05177963]
[1725266953394,0.05598195,130.33,130.3,0.05177963]
[1725266953589,0.05598195,130.33,130.3,20.68177963]
[1725266953785,0.05598195,130.33,130.32,20.63]
[1725266954086,3.8355,130.37,130.32,20.63]
[1725266954283,3.8355,130.37,130.34,20.63]
[1725266954696,3.8355,130.37,130.34,24.47553406]
[1725266955189,3.89357499,130.37,130.34,24.53215042]
[1725266956095,0.05807499,130.37,130.34,28.36835042]
[1725266956486,0.05807499,130.37,130.34,20.68661636]
[1725266956885,3.89377499,130.37,130.34,20.68661636]
[1725266957503,3.8357,130.36,130.34,20.68661636]
[1725266957891,0.05807499,130.37,130.34,20.68661636]
[1725266958394,0.05807499,130.37,130.34,24.52291636]
[1725266958897,0.05807499,130.37,130.35,3.8358]
[1725266959085,0.05807499,130.37,130.36,20.63]
[1725266960087,0.05807499,130.37,130.34,0.05661636]
[1725266960805,3.89357499,130.37,130.34,0.05661636]
[1725266960991,0.05807499,130.37,130.35,20.63]
[1725266962795,3.89347499,130.37,130.35,20.63]
[1725266963192,0.05807499,130.37,130.35,20.63]
[1725266964092,0.05807499,130.37,130.36,3.8357]
[1725266965505,1.4041,130.45,130.36,20.63]
[1725266965706,1.4041,130.45,130.39,20.63]
[1725266966108,3.8338,130.43,130.39,24.4647]
[1725266966303,1.4041,130.45,130.39,24.4647]
[1725266966505,0.04865589,130.43,130.41,0.04872587]
[1725266966710,0.04865589,130.43,130.41,20.67872587]
[1725266967712,3.88255589,130.43,130.41,20.67872587]
[1725266968419,0.04865589,130.43,130.42,3.8339]
[1725266969008,0.04865589,130.43,130.41,24.51282587]
[1725266969210,0.04865589,130.43,130.41,20.67872587]
[1725266969816,0.04865589,130.43,130.41,0.04872587]
[1725266970415,0.04865589,130.43,130.41,20.67872587]
[1725266970912,0.04865589,130.43,130.41,27.67872587]
[1725266971114,0.04865589,130.43,130.41,31.51272587]
[1725266971413,0.04865589,130.43,130.42,3.84957605]
[1725266972009,0.04865589,130.43,130.41,0.04872587]
[1725266972214,0.04865589,130.43,130.41,20.67872587]
[1725266972415,3.88245589,130.43,130.41,20.67872587]
[1725266974118,3.8339,130.42,130.41,20.67872587]
[1725266976314,3.8346,130.4,130.36,3.92079435]
[1725266976519,3.85916069,130.46,130.38,20.63]
[1725266976717,20.63,130.47,130.38,20.63]
[1725266976917,3.8344,130.41,130.38,20.63]
[1725266977320,3.88900885,130.41,130.38,20.67997836]
[1725266977512,3.8346,130.4,130.38,20.67997836]
[1725266979213,3.88890885,130.41,130.38,20.67997836]
[1725266979721,3.8345,130.4,130.38,20.67997836]
[1725266981415,3.8348,130.39,130.38,0.04997836]
[1725266984220,3.836,130.35,130.33,20.63]
[1725266984521,20.63,130.36,130.28,1.384]
[1725266984723,24.47397054,130.36,130.27,1.3649]
[1725266984917,22.0712,130.35,130.26,20.63]
[1725266985120,0.04946705,130.32,130.29,0.05521564]
[1725266985322,3.74808223,130.31,130.29,0.05521564]
[1725266986032,0.04946705,130.32,130.29,0.05521564]
[1725266986325,3.8374,130.3,130.29,0.05521564]
[1725266987723,3.8386,130.26,130.23,6.98]
[1725266988129,3.8386,130.26,130.22,28.26335191]
[1725266988330,3.8386,130.26,130.22,24.4696]
[1725266988532,3.839,130.25,130.22,20.63]
[1725266988725,0.05022513,130.25,130.22,24.46547471]
[1725266988927,0.05022513,130.25,130.22,28.30507471]
[1725266989132,0.05022513,130.25,130.22,35.28507471]
[1725266989433,0.05022513,130.25,130.23,3.8393]
[1725266989729,0.05022513,130.25,130.24,20.63]
[1725266989937,0.05022513,130.25,130.22,7.03822571]
[1725266990231,3.88942513,130.25,130.22,0.05822571]
[1725266990836,0.05022513,130.25,130.22,0.05822571]
[1725266991334,3.8394,130.24,130.22,0.05822571]
[1725266992128,3.8395,130.23,130.22,0.05822571]
[1725266992720,3.9334451,130.25,130.22,0.05822571]
[1725266993423,3.8393,130.24,130.22,0.05822571]
[1725266994838,3.8395,130.23,130.22,0.05822571]
[1725266997028,3.8395,130.23,130.15,88.18168106]
[1725266997029,24.51321997,130.25,130.15,84.33988106]
[1725266997229,6.98,130.24,130.15,108.81148106]
[1725266997547,24.51321997,130.25,130.16,20.63]
[1725266997829,24.51321997,130.25,130.16,24.4716]
[1725266998025,24.51321997,130.25,130.19,0.05857759]
[1725266998026,0.0512907,130.22,130.19,0.05857759]
[1725266998936,0.0512907,130.22,130.2,20.63]
[1725266999336,20.63,130.3,130.2,22.0775]
[1725266999534,3.8385,130.27,130.22,20.63]
[1725266999725,24.40110838,130.32,130.2,8.4275]
[1725266999938,20.63,130.28,130.2,8.4275]
[1725267000435,0.05605014,130.25,130.23,0.05124799]
[1725267000634,3.92377175,130.25,130.23,0.05124799]
[1725267000938,0.05605014,130.25,130.23,0.05124799]
[1725267001335,3.82928719,130.25,130.23,0.05124799]
[1725267002034,7.66838719,130.25,130.23,0.05124799]
[1725267002234,3.86078204,130.25,130.23,0.05124799]
[1725267002437,20.63,130.24,130.16,1.417]
[1725267002638,20.63,130.23,130.16,1.417]
[1725267002835,3.8405,130.2,130.16,1.417]
[1725267003536,3.89657045,130.19,130.17,0.05902918]
[1725267004140,3.89657045,130.19,130.17,3.91882647]
[1725267004141,0.05587045,130.19,130.17,3.91882647]
[1725267004341,0.05587045,130.19,130.17,24.54882647]
[1725267004932,3.8047319,130.25,130.17,24.54882647]
[1725267005231,20.63,130.26,130.17,25.93479729]
[1725267005433,20.63,130.26,130.19,3.8406]
[1725267005938,3.8397,130.23,130.19,24.4706]
[1725267006143,0.0546506,130.24,130.21,0.05871131]
[1725267006543,3.8938506,130.24,130.21,0.05871131]
[1725267007045,0.0546506,130.24,130.21,0.05871131]
[1725267007648,0.0546506,130.24,130.21,3.89871131]
[1725267007944,0.0546506,130.24,130.22,1.3903]
[1725267008140,0.0546506,130.24,130.23,3.8395]
[1725267008349,20.63,130.31,130.23,1.4416]
[1725267008639,3.77110838,130.32,130.24,24.3972811]
[1725267008840,3.8379,130.29,130.25,3.8389]
[1725267009050,3.8379,130.29,130.24,31.3772811]
[1725267009246,0.05425534,130.28,130.25,0.05788025]
[1725267011346,0.05425534,130.28,130.25,3.89658025]
[1725267012351,0.05425534,130.28,130.25,0.05788025]
[1725267013044,3.8386,130.26,130.25,0.05788025]
[1725267013942,0.05425534,130.28,130.25,0.05788025]
[1725267014537,0.05425534,130.28,130.26,24.4684]
[1725267014844,20.63,130.35,130.27,20.63]
[1725267015047,3.8374,130.31,130.26,24.4684]
[1725267015342,3.83183667,130.32,130.26,31.4484]
[1725267015541,20.63,130.35,130.27,3.8383]
[1725267015542,3.8374,130.31,130.27,3.8383]
[1725267015738,20.63,130.37,130.28,20.63]
[1725267015939,0.05820553,130.34,130.31,0.05043419]
[1725267016842,3.8366,130.33,130.31,0.05043419]
[1725267017748,3.8369,130.32,130.31,0.05043419]
[1725267017943,0.05820553,130.34,130.31,0.05043419]
[1725267018637,0.05820553,130.34,130.31,3.88753419]
[1725267018839,0.05820553,130.34,130.31,20.68043419]
[1725267019157,6.98,130.41,130.33,20.63]
[1725267019342,3.8351,130.38,130.33,31.4463]
[1725267020341,0.05830249,130.37,130.34,0.05067962]
[1725267020647,3.89370249,130.37,130.34,0.05067962]
[1725267021349,3.8358,130.36,130.34,0.05067962]
[1725267023447,3.89370249,130.37,130.34,0.05067962]
[1725267023647,0.05830249,130.37,130.34,0.05067962]
[1725267025457,3.89390249,130.37,130.34,0.05067962]
[1725267028854,3.89390249,130.37,130.34,3.88687962]
[1725267029157,0.05830249,130.37,130.34,3.88687962]
[1725267029662,0.05830249,130.37,130.34,0.05067962]
[1725267030759,0.05830249,130.37,130.34,3.88677962]
[1725267035062,3.836,130.35,130.34,0.05067962]
[1725267043269,20.63,130.36,130.15,84.33988106]
[1725267043464,11.1185,130.39,130.25,6.96]
[1725267043465,20.63,130.33,130.25,6.96]
[1725267043665,24.55994168,130.33,130.23,20.63]
[1725267043863,3.8385,130.27,130.24,10.86768876]
[1725267044369,3.89336723,130.27,130.24,10.92537969]
[1725267045076,0.05486723,130.27,130.25,20.63]
[1725267045575,0.05486723,130.27,130.25,24.4688]
[1725267045869,0.05486723,130.27,130.25,20.63]
[1725267046262,0.05486723,130.27,130.26,3.8386]
[1725267047064,0.05486723,130.27,130.24,10.92537969]
[1725267047263,0.05486723,130.27,130.25,20.63]
[1725267047769,0.05486723,130.27,130.25,24.4687]
[1725267047965,0.05486723,130.27,130.25,27.59]
[1725267048772,22.1075,130.38,130.25,27.59]
[1725267048976,22.1075,130.38,130.29,20.63]
[1725267049170,3.8363,130.34,130.3,3.8372]
[1725267049769,0.04979018,130.33,130.31,20.6874986]
[1725267049977,0.05800536,130.33,130.32,3.75229413]
[1725267050173,0.05800536,130.33,130.31,20.68328355]
[1725267050373,0.05800536,130.33,130.32,6.96]
[1725267051388,0.05800536,130.33,130.31,0.05328355]
[1725267051971,0.05800536,130.33,130.31,10.82792218]
[1725267052377,0.05800536,130.33,130.32,24.4669]
[1725267053283,27.59,130.44,130.34,3.8362]
[1725267053476,5.16758111,130.41,130.35,20.63]
[1725267053781,3.835,130.39,130.35,24.4659]
[1725267054177,0.05672822,130.38,130.36,0.05709738]
[1725267054989,3.8354,130.37,130.36,0.05709738]
[1725267060286,0.05672822,130.38,130.36,0.05709738]
[1725267061285,3.8354,130.37,130.36,0.05709738]
[1725267063382,3.89192822,130.38,130.36,0.05709738]
[1725267063584,0.05672822,130.38,130.33,3.8365]
[1725267064096,3.8355,130.37,130.33,3.8365]
[1725267064588,3.8355,130.37,130.34,0.05249147]
[1725267065588,3.89192822,130.38,130.35,20.63]
[1725267065791,0.05672822,130.38,130.35,20.63]
[1725267065991,0.05672822,130.38,130.36,3.8354]
[1725267068686,0.05672822,130.38,130.37,3.8354]
[1725267071500,0.05672822,130.38,130.35,20.63]
[1725267071501,0.05672822,130.38,130.34,1.41879147]
[1725267072193,0.05672822,130.38,130.35,3.8359]
[1725267072387,0.05672822,130.38,130.34,1.41879147]
[1725267072588,0.05672822,130.38,130.34,0.05249147]
[1725267073287,3.8354,130.37,130.34,0.05249147]
[1725267075097,3.8354,130.37,130.34,3.88879147]
[1725267075599,3.8354,130.37,130.34,0.05249147]
[1725267076301,20.68672822,130.38,130.34,0.05249147]
[1725267077799,3.8359,130.36,130.34,0.05249147]
[1725267078798,3.836,130.35,130.34,0.05249147]
[1725267080288,2.8348,130.4,130.27,25.91432192]
[1725267080289,20.63,130.37,130.27,25.91432192]
[1725267080494,20.63,130.33,130.25,20.63]
[1725267080690,24.37175234,130.33,130.24,3.8391]
[1725267080996,3.8383,130.28,130.24,3.8391]
[1725267081602,0.05104257,130.27,130.25,0.05338833]
[1725267082002,3.74175234,130.33,130.25,0.05338833]
[1725267082194,20.63,130.34,130.26,3.91552861]
[1725267082502,3.8373,130.31,130.27,3.8383]
[1725267082714,4.2672,130.39,130.28,20.63]
[1725267082998,4.2672,130.39,130.31,3.837]
[1725267082999,3.8356,130.37,130.31,3.837]
[1725267083203,28.7876719,130.39,130.31,3.837]
[1725267083204,0.05879084,130.35,130.32,0.0564197]
[1725267084897,0.05879084,130.35,130.32,3.8931197]
[1725267085604,0.05879084,130.35,130.33,3.8366]
[1725267085896,0.05879084,130.35,130.32,6.9964197]
[1725267086103,0.05879084,130.35,130.33,20.63]
[1725267086989,20.63,130.43,130.34,6.94]
[1725267087208,24.46612087,130.43,130.35,20.63]
[1725267088103,3.88760123,130.4,130.38,0.05151041]
[1725267089508,3.8348,130.39,130.38,0.05151041]
[1725267098811,3.88770123,130.4,130.38,0.05151041]
[1725267099204,0.05310123,130.4,130.38,0.05151041]
[1725267099909,3.8348,130.39,130.38,0.05151041]
[1725267103207,3.88770123,130.4,130.38,0.05151041]
[1725267104317,0.05310123,130.4,130.38,0.05151041]
[1725267107314,3.88760123,130.4,130.38,0.05151041]
[1725267107715,0.05310123,130.4,130.38,0.05151041]
[1725267109122,0.05310123,130.4,130.38,3.88651041]
[1725267113612,0.05310123,130.4,130.39,3.8348]
[1725267114618,0.05310123,130.4,130.39,24.4648]
[1725267120823,0.05310123,130.4,130.38,0.05151041]
[1725267121819,0.05310123,130.4,130.39,20.63]
[1725267123332,2.8723,130.48,130.41,3.8342]
[1725267123533,6.7282181,130.48,130.41,3.8342]
[1725267123833,3.8332,130.45,130.41,3.8342]
[1725267124132,3.8332,130.45,130.42,3.8339]
[1725267124321,3.89199025,130.45,130.42,3.89207128]
[1725267124726,0.05879025,130.45,130.42,20.68817128]
[1725267124932,1.3501,130.52,130.44,20.63]
[1725267125132,5.11562675,130.52,130.44,20.63]
[1725267125333,3.8318,130.5,130.45,24.4628]
[1725267125529,5.21568809,130.52,130.45,24.4628]
[1725267125741,1.3501,130.52,130.45,24.4628]
[1725267125928,3.88614469,130.5,130.47,0.05694551]
[1725267126129,7.79160397,130.5,130.47,0.05694551]
[1725267126329,3.88614469,130.5,130.47,0.05694551]
[1725267127029,0.05434469,130.5,130.47,0.05694551]
[1725267127231,0.05434469,130.5,130.47,3.88914551]
[1725267127425,0.05434469,130.5,130.47,0.05694551]
[1725267127731,0.05434469,130.5,130.47,20.68694551]
[1725267128330,0.05434469,130.5,130.48,3.832]
[1725267128732,0.05434469,130.5,130.47,20.68694551]
[1725267129545,0.05434469,130.5,130.47,24.51924551]
[1725267134134,0.05434469,130.5,130.47,0.05694551]
[1725267134738,0.05434469,130.5,130.48,20.63]
[1725267135947,0.05434469,130.5,130.49,8.24]
[1725267138346,0.05434469,130.5,130.49,12.0719]
[1725267138546,0.05434469,130.5,130.49,8.24]
[1725267138850,0.05434469,130.5,130.47,0.05694551]
[1725267139241,0.05434469,130.5,130.48,8.24]
[1725267139655,2.8747,130.58,130.48,8.24]
[1725267139846,2.8747,130.58,130.49,6.55864727]
[1725267140046,6.7076503,130.58,130.5,6.9]
[1725267140245,8.24,130.59,130.53,8.24]
[1725267140447,19.57632997,130.68,130.54,8.24]
[1725267140448,8.249,130.64,130.54,8.24]
[1725267140648,8.249,130.64,130.58,0.05271548]
[1725267140649,0.05616575,130.6,130.58,0.05271548]
[1725267142341,0.05616575,130.6,130.58,20.63271548]
[1725267142651,0.05616575,130.6,130.58,0.05271548]
[1725267143655,3.88496575,130.6,130.58,0.05271548]
[1725267144342,3.8289,130.59,130.58,0.05271548]
[1725267144749,3.88486575,130.6,130.58,0.05271548]
[1725267144944,0.05616575,130.6,130.58,0.05271548]
[1725267146947,0.05616575,130.6,130.58,3.88181548]
[1725267148056,0.05616575,130.6,130.58,0.05271548]
[1725267148453,20.63616575,130.6,130.34,225.0]
[1725267148653,21.9629,130.6,130.52,20.58]
[1725267149651,0.05161129,130.57,130.55,0.04832119]
[1725267149856,3.83,130.56,130.55,0.04832119]
[1725267150058,7.68528594,130.56,130.55,0.04832119]
[1725267154751,7.68528594,130.56,130.4,20.58]
[1725267154752,20.58,130.56,130.35,4.55190133]
[1725267154953,20.58,130.52,130.42,20.58]
[1725267155155,20.58,130.5,130.42,20.58]
[1725267155350,3.8335,130.44,130.41,1.3933]
[1725267155555,20.58,130.48,130.38,27.46]
[1725267155755,0.05084005,130.44,130.42,0.05043639]
[1725267156554,24.46042477,130.45,130.34,4.1965]
[1725267156555,20.58,130.43,130.34,4.1965]
[1725267156758,20.58,130.43,130.34,8.07998927]
[1725267157258,3.8347,130.4,130.34,8.07998927]
[1725267157449,0.0550117,130.38,130.36,0.05020808]
[1725267159454,0.0550117,130.38,130.37,20.58]
[1725267161555,0.0550117,130.38,130.36,0.05020808]
[1725267162148,0.0550117,130.38,130.36,3.88580808]
[1725267163764,0.0550117,130.38,130.37,3.8354]
[1725267163961,0.0550117,130.38,130.36,0.05020808]
[1725267166466,6.84342477,130.45,130.37,20.58]
[1725267166850,6.84342477,130.45,130.34,14.8474947]
[1725267167055,20.58,130.42,130.34,11.0765]
[1725267167267,20.58,130.42,130.34,4.1965]
[1725267167452,3.8353,130.38,130.37,0.0573744]
[1725267170361,3.8353,130.38,130.31,20.58]
[1725267170362,3.8359,130.36,130.31,2.8732]
[1725267170661,20.58,130.38,130.31,2.8732]
[1725267170662,3.88748274,130.37,130.31,2.8732]
[1725267170865,20.58,130.38,130.31,1.3966]
[1725267171267,3.8361,130.35,130.33,0.05562335]
[1725267171969,3.8363,130.34,130.33,0.05562335]
[1725267175274,24.4163,130.34,130.33,0.05562335]
[1725267175500,20.58,130.34,130.26,27.46]
[1725267175773,20.58,130.34,130.26,31.32471761]
[1725267176478,0.04985077,130.31,130.29,0.05682401]
[1725267176872,3.8374,130.3,130.29,0.05682401]
[1725267179478,3.90825445,130.31,130.29,0.05682401]
[1725267179479,0.04985077,130.31,130.29,0.05682401]
[1725267180380,0.04985077,130.31,130.29,3.89432401]
[1725267180879,3.88705077,130.31,130.29,0.05682401]
[1725267181175,0.04985077,130.31,130.29,0.05682401]
[1725267183275,3.90040534,130.36,130.29,0.05682401]
[1725267183485,22.0594,130.38,130.29,0.05682401]
[1725267183674,22.0594,130.38,130.28,24.39867526]
[1725267183874,3.8358,130.36,130.32,3.8368]
[1725267184285,0.05266799,130.35,130.33,0.05078468]
[1725267185683,0.05266799,130.35,130.33,3.88718468]
[1725267186782,0.05266799,130.35,130.33,0.05078468]
[1725267189774,0.05266799,130.35,130.34,3.8363]
[1725267192282,20.58,130.42,130.37,3.8354]
[1725267192889,3.87312058,130.41,130.37,3.8354]
[1725267193192,7.70742058,130.41,130.37,3.8354]
[1725267193392,0.05581675,130.4,130.38,0.05346941]
[1725267196585,20.63581675,130.4,130.38,0.05346941]
[1725267196786,3.8348,130.39,130.38,0.05346941]
[1725267199299,24.47041675,130.4,130.38,0.05346941]
[1725267200096,3.8348,130.39,130.38,0.05346941]
[1725267205697,20.58,130.4,130.3,1.4582]
[1725267205896,20.58,130.37,130.3,1.4582]
[1725267206102,3.8359,130.36,130.32,3.8368]
[1725267206494,0.04858586,130.35,130.33,0.05395801]
[1725267207492,0.04858586,130.35,130.33,3.89045801]
[1725267213500,0.04858586,130.35,130.34,3.8363]
[1725267216407,20.58,130.43,130.34,20.58]
[1725267216604,3.8622091,130.42,130.35,5.20844328]
[1725267216813,3.8342,130.41,130.37,3.8351]
[1725267217316,0.0486764,130.4,130.38,0.05216478]
[1725267217705,24.48747986,130.39,130.32,6.86]
[1725267218121,24.48747986,130.39,130.33,3.8363]
[1725267218516,24.48747986,130.39,130.32,10.6967]
[1725267218728,20.632794,130.37,130.34,0.05003476]
[1725267219224,3.8359,130.36,130.34,0.05003476]
[1725267222027,3.836,130.35,130.34,0.05003476]
[1725267222425,20.632794,130.37,130.34,0.05003476]
[1725267223414,3.8357,130.36,130.34,0.05003476]
[1725267233029,3.8357,130.36,130.32,10.6968]
[1725267233030,20.58,130.35,130.25,27.44]
[1725267233328,20.58,130.33,130.25,20.58]
[1725267233522,20.58,130.31,130.24,11.1479]
[1725267233723,24.31964406,130.31,130.24,11.1479]
[1725267234020,3.8381,130.28,130.26,0.0507858]
[1725267234426,20.58,130.28,130.26,0.0507858]
[1725267234622,3.8383,130.27,130.26,0.0507858]
[1725267237532,20.58,130.28,130.21,3.8399]
[1725267238045,3.8386,130.26,130.21,3.8399]
[1725267238633,0.05451867,130.25,130.22,0.05591214]
[1725267239031,0.05451867,130.25,130.22,3.89561214]
[1725267239531,0.05451867,130.25,130.22,0.05591214]
[1725267240036,0.05451867,130.25,130.22,4.41171214]
[1725267240225,0.05451867,130.25,130.24,3.8392]
[1725267240436,20.58,130.32,130.23,27.44]
[1725267240632,24.41463841,130.32,130.24,6.86]
[1725267240846,24.41463841,130.32,130.23,20.58]
[1725267241430,0.04889533,130.29,130.26,0.05766959]
[1725267241629,0.04889533,130.29,130.27,3.8381]
[1725267241837,0.04889533,130.29,130.26,0.05766959]
[1725267242334,0.04889533,130.29,130.28,3.838]
[1725267242540,20.58,130.35,130.28,3.75594963]
[1725267242727,20.58,130.35,130.27,20.58]
[1725267242924,20.58,130.35,130.28,5.29183789]
[1725267243535,0.05247377,130.33,130.3,0.05532313]
[1725267244540,3.88907377,130.33,130.3,0.05532313]
[1725267244922,0.05247377,130.33,130.3,0.05532313]
[1725267245135,3.88688512,130.32,130.3,0.05532313]
[1725267245740,3.8371,130.31,130.3,0.05532313]
[1725267246041,28.26292917,130.31,130.3,0.05532313]
[1725267246240,24.4171,130.31,130.3,0.05532313]
[1725267246934,28.23837235,130.31,130.3,0.05532313]
[1725267247145,24.40127235,130.31,130.23,1.4203]
[1725267247340,24.40127235,130.31,130.19,20.58]
[1725267247341,20.58,130.27,130.19,20.58]
[1725267247533,3.8388,130.26,130.22,3.8398]
[1725267248136,0.05594596,130.25,130.23,0.05897351]
[1725267249734,0.05594596,130.25,130.23,3.89837351]
[1725267249942,0.05594596,130.25,130.23,0.05897351]
[1725267251445,3.89504596,130.25,130.23,0.05897351]
[1725267251640,0.05594596,130.25,130.23,0.05897351]
[1725267252339,3.8392,130.24,130.23,0.05897351]
[1725267252653,20.58,130.24,130.18,1.4528]
[1725267252845,20.58,130.22,130.16,6.86]
[1725267253046,20.58,130.22,130.15,6.86]
[1725267253538,3.8406,130.2,130.14,259.60957224]